fUSD/lending_fUSD_20250308
["ID","MTS","AMOUNT","RATE_DAILY","PERIOD"]
[355626149,1741407035754,-777.42,8.219e-05,2]
[355626150,1741407035763,-500.0,8.219e-05,2]
[355626151,1741407035773,-1295.29,8.219e-05,2]
[355626152,1741407035783,-500.0,8.219e-05,2]
[355626153,1741407035792,-500.0,8.219e-05,2]
[355626154,1741407035802,-2111.36,8.219e-05,2]
[355626155,1741407035812,-934.76,8.219e-05,2]
[355626156,1741407035828,-1195.98,8.219e-05,2]
[355626157,1741407035848,-1002.45,8.219e-05,2]
[355626158,1741407035868,-500.0,8.219e-05,2]
[355626159,1741407035890,-500.0,8.219e-05,2]
[355626160,1741407035906,-500.0,8.219e-05,2]
[355626161,1741407035925,-500.0,8.219e-05,2]
[355626162,1741407035945,-500.0,8.219e-05,2]
[355626163,1741407035965,-1420.84,8.219e-05,2]
[355626164,1741407035984,-500.0,8.219e-05,2]
[355626165,1741407036003,-500.0,8.219e-05,2]
[355626166,1741407036022,-810.91,8.219e-05,2]
[355626167,1741407036036,-2601.96,8.219e-05,2]
[355626168,1741407036057,-2874.6,8.219e-05,2]
[355626169,1741407036071,-500.0,8.219e-05,2]
[355626170,1741407036090,-2377.56,8.219e-05,2]
[355626171,1741407036105,-500.0,8.219e-05,2]
[355626172,1741407036121,-500.0,8.219e-05,2]
[355626173,1741407036137,-500.0,8.219e-05,2]
[355626174,1741407036152,-1188.81,8.219e-05,2]
[355626175,1741407036171,-500.0,8.219e-05,2]
[355626176,1741407036186,-500.0,8.219e-05,2]
[355626177,1741407036201,-1482.1,8.219e-05,2]
[355626178,1741407036215,-500.0,8.219e-05,2]
[355626179,1741407036232,-500.0,8.219e-05,2]
[355626180,1741407036247,-1027.55,8.219e-05,2]
[355626181,1741407036262,-500.0,8.219e-05,2]
[355626182,1741407036277,-508.57,8.219e-05,2]
[355626183,1741407036293,-979.67,8.219e-05,2]
[355626184,1741407036311,-1094.7,8.219e-05,2]
[355626185,1741407036326,-1079.05,8.219e-05,2]
[355626186,1741407036342,-2742.92,8.219e-05,2]
[355626187,1741407036358,-500.0,8.219e-05,2]
[355626188,1741407036374,-500.0,8.219e-05,2]
[355626189,1741407036391,-1819.52,8.219e-05,2]
[355626190,1741407036406,-500.0,8.219e-05,2]
[355626191,1741407036421,-500.0,8.219e-05,2]
[355626192,1741407036438,-500.0,8.219e-05,2]
[355626193,1741407036453,-500.0,8.219e-05,2]
[355626194,1741407036468,-1232.75,8.219e-05,2]
[355626195,1741407036483,-978.12,8.219e-05,2]
[355626196,1741407036498,-500.0,8.219e-05,2]
[355626197,1741407036513,-500.0,8.219e-05,2]
[355626198,1741407036528,-500.0,8.219e-05,2]
[355626199,1741407036544,-500.0,8.219e-05,2]
[355626200,1741407036560,-2140.09,8.219e-05,2]
[355626201,1741407036577,-500.0,8.219e-05,2]
[355626202,1741407036593,-500.0,8.219e-05,2]
[355626203,1741407036610,-500.0,8.219e-05,2]
[355626204,1741407036625,-500.0,8.219e-05,2]
[355626205,1741407036641,-500.0,8.219e-05,2]
[355626206,1741407036657,-500.0,8.219e-05,2]
[355626207,1741407036672,-1829.72,8.219e-05,2]
[355626208,1741407036688,-565.54,8.219e-05,2]
[355626209,1741407036703,-500.0,8.219e-05,2]
[355626210,1741407036718,-568.27,8.219e-05,2]
[355626211,1741407036734,-500.0,8.219e-05,2]
[355626212,1741407036749,-2933.58,8.219e-05,2]
[355626213,1741407036765,-1893.22,8.219e-05,2]
[355626214,1741407036780,-298.68434184,8.219e-05,2]
[355626215,1741407036796,-500.0,8.219e-05,2]
[355626216,1741407036811,-828.47,8.219e-05,2]
[355626217,1741407036825,-1381.0,8.219e-05,2]
[355626218,1741407036842,-718.24,8.219e-05,2]
[355626219,1741407036857,-500.0,8.219e-05,2]
[355626220,1741407036872,-601.84818216,8.219e-05,2]
[355626221,1741407036887,-500.0,8.219e-05,2]
[355626222,1741407036902,-500.0,8.219e-05,2]
[355626223,1741407036917,-506.9282103,8.219e-05,2]
[355626224,1741407036932,-500.0,8.219e-05,2]
[355626225,1741407036948,-1687.94,8.219e-05,2]
[355626226,1741407036963,-802.49,8.219e-05,2]
[355626227,1741407036977,-500.0,8.219e-05,2]
[355626228,1741407036993,-500.0,8.219e-05,2]
[355626229,1741407037008,-500.0,8.219e-05,2]
[355626230,1741407037023,-500.36,8.219e-05,2]
[355626231,1741407037039,-500.0,8.219e-05,2]
[355626232,1741407037055,-500.0,8.219e-05,2]
[355626233,1741407037070,-1349.67,8.219e-05,2]
[355626234,1741407037085,-500.0,8.219e-05,2]
[355626235,1741407037099,-500.0,8.219e-05,2]
[355626236,1741407037115,-1737.52,8.219e-05,2]
[355626237,1741407037128,-500.0,8.219e-05,2]
[355626238,1741407037144,-500.0,8.219e-05,2]
[355626239,1741407037159,-500.0,8.219e-05,2]
[355626240,1741407037173,-632.45478172,8.219e-05,2]
[355626241,1741407037188,-500.0,8.219e-05,2]
[355626242,1741407037202,-500.0,8.219e-05,2]
[355626243,1741407037214,-2687.67,8.219e-05,2]
[355626244,1741407037224,-662.2,8.219e-05,2]
[355626245,1741407037233,-521.89145888,8.219e-05,2]
[355626246,1741407037242,-500.0,8.219e-05,2]
[355626247,1741407037252,-2193.42,8.219e-05,2]
[355626248,1741407037261,-1651.03,8.219e-05,2]
[355626249,1741407037541,-500.0,8.219e-05,2]
[355626250,1741407037556,-965.96,8.219e-05,2]
[355626251,1741407037565,-1280.32,8.219e-05,2]
[355626252,1741407037575,-500.0,8.219e-05,2]
[355626253,1741407037584,-500.0,8.219e-05,2]
[355626254,1741407037594,-1382.1,8.219e-05,2]
[355626255,1741407037604,-500.0,8.219e-05,2]
[355626256,1741407037615,-500.0,8.219e-05,2]
[355626257,1741407037624,-500.0,8.219e-05,2]
[355626258,1741407037635,-717.83,8.219e-05,2]
[355626259,1741407037645,-1329.98,8.219e-05,2]
[355626260,1741407037655,-500.0,8.219e-05,2]
[355626261,1741407037665,-500.0,8.219e-05,2]
[355626262,1741407037675,-500.0,8.219e-05,2]
[355626263,1741407037687,-500.0,8.219e-05,2]
[355626264,1741407037696,-2634.85,8.219e-05,2]
[355626265,1741407037705,-1329.48,8.219e-05,2]
[355626266,1741407037715,-3186.11,8.219e-05,2]
[355626267,1741407037724,-500.0,8.219e-05,2]
[355626268,1741407037734,-500.0,8.219e-05,2]
[355626269,1741407037743,-500.0,8.219e-05,2]
[355626270,1741407037753,-500.0,8.219e-05,2]
[355626271,1741407037763,-506.98885544,8.219e-05,2]
[355626272,1741407037772,-500.0,8.219e-05,2]
[355626273,1741407037782,-500.0,8.219e-05,2]
[355626274,1741407037791,-728.36,8.219e-05,2]
[355626275,1741407037801,-500.0,8.219e-05,2]
[355626276,1741407037810,-500.0,8.219e-05,2]
[355626277,1741407037819,-2468.99,8.219e-05,2]
[355626278,1741407037829,-936.33,8.219e-05,2]
[355626279,1741407037838,-500.0,8.219e-05,2]
[355626280,1741407037848,-2713.6,8.219e-05,2]
[355626281,1741407037857,-500.0,8.219e-05,2]
[355626282,1741407037867,-500.0,8.219e-05,2]
[355626283,1741407037877,-838.99,8.219e-05,2]
[355626284,1741407037886,-1693.62,8.219e-05,2]
[355626285,1741407037896,-2122.8949957,8.219e-05,2]
[355626290,1741407038422,-251.4150043,8.219e-05,2]
[355626291,1741407038431,-584.44192346,8.219e-05,2]
[355626292,1741407038448,-988.468,8.219e-05,2]
[355626299,1741407040126,-804.32,8.219e-05,2]
[355626300,1741407040236,-1638.53007654,8.219e-05,2]
[355626301,1741407040246,-500.0,8.219e-05,2]
[355626302,1741407040255,-2315.54,8.219e-05,2]
[355626303,1741407040264,-500.0,8.219e-05,2]
[355626304,1741407040275,-500.0,8.219e-05,2]
[355626305,1741407040285,-500.0,8.219e-05,2]
[355626306,1741407040295,-500.0,8.219e-05,2]
[355626307,1741407040308,-500.0,8.219e-05,2]
[355626308,1741407040318,-987.93,8.219e-05,2]
[355626309,1741407040327,-500.0,8.219e-05,2]
[355626310,1741407040336,-500.0,8.219e-05,2]
[355626311,1741407040347,-1114.47,8.219e-05,2]
[355626312,1741407040357,-1576.79,8.219e-05,2]
[355626313,1741407040366,-2443.8,8.219e-05,2]
[355626314,1741407040376,-2704.65,8.219e-05,2]
[355626315,1741407040387,-500.0,8.219e-05,2]
[355626316,1741407040396,-500.0,8.219e-05,2]
[355626317,1741407040406,-1575.65,8.219e-05,2]
[355626318,1741407040416,-1068.99,8.219e-05,2]
[355626319,1741407040425,-354.19382691,8.219e-05,2]
[355626320,1741407040437,-145.80617309,8.219e-05,2]
[355626321,1741407040447,-500.0,8.219e-05,2]
[355626322,1741407040456,-500.0,8.219e-05,2]
[355626323,1741407040466,-719.36,8.219e-05,2]
[355626324,1741407040476,-1233.33,8.219e-05,2]
[355626325,1741407040485,-500.0,8.219e-05,2]
[355626326,1741407040495,-500.0,8.219e-05,2]
[355626327,1741407040504,-500.0,8.219e-05,2]
[355626328,1741407040513,-500.0,8.219e-05,2]
[355626329,1741407040523,-3167.64,8.219e-05,2]
[355626330,1741407040532,-500.0,8.219e-05,2]
[355626331,1741407040543,-500.0,8.219e-05,2]
[355626332,1741407040552,-500.0,8.219e-05,2]
[355626333,1741407040561,-2067.41,8.219e-05,2]
[355626334,1741407040571,-500.0,8.219e-05,2]
[355626335,1741407040580,-500.0,8.219e-05,2]
[355626336,1741407040589,-60.34767801,8.219e-05,2]
[355626337,1741407040602,-3124.66232199,8.219e-05,2]
[355626338,1741407040612,-4564.52,8.219e-05,2]
[355626339,1741407040623,-466.51767801,8.219e-05,2]
[355626340,1741407040635,-33.48232199,8.219e-05,2]
[355626341,1741407040644,-500.0,8.219e-05,2]
[355626342,1741407040654,-714.74,8.219e-05,2]
[355626343,1741407040664,-500.0,8.219e-05,2]
[355626345,1741407040673,-500.0,8.219e-05,2]
[355626347,1741407040682,-1199.69,8.219e-05,2]
[355626349,1741407040691,-500.0,8.219e-05,2]
[355626350,1741407040700,-500.0,8.219e-05,2]
[355626351,1741407040710,-500.0,8.219e-05,2]
[355626352,1741407040719,-500.0,8.219e-05,2]
[355626353,1741407040729,-1879.18,8.219e-05,2]
[355626355,1741407040738,-1357.4,8.219e-05,2]
[355626356,1741407040748,-500.0,8.219e-05,2]
[355626357,1741407040758,-371.86811938,8.219e-05,2]
[355626358,1741407040776,-128.13188062,8.219e-05,2]
[355626359,1741407040786,-500.0,8.219e-05,2]
[355626360,1741407040795,-500.0,8.219e-05,2]
[355626361,1741407040805,-201.01467833,8.219e-05,2]
[355626362,1741407040817,-298.98532167,8.219e-05,2]
[355626363,1741407040827,-474.98889615,8.219e-05,2]
[355626364,1741407040848,-25.01110385,8.219e-05,2]
[355626365,1741407040857,-333.12079175,8.219e-05,2]
[355626366,1741407040869,-166.87920825,8.219e-05,2]
[355626367,1741407040879,-177.25053211,8.219e-05,2]
[355626368,1741407040891,-322.74946789,8.219e-05,2]
[355626369,1741407040905,-78.86674711,8.219e-05,2]
[355626370,1741407041426,-214.36614512,8.219e-05,2]
[355626371,1741407041445,-206.76710777,8.219e-05,2]
[355626372,1741407041455,-1553.06987183,8.219e-05,2]
[355626373,1741407041466,-310.5,8.219e-05,2]
[355626374,1741407041784,-1093.47012817,8.219e-05,2]
[355626375,1741407041793,-500.0,8.219e-05,2]
[355626376,1741407041803,-2538.1,8.219e-05,2]
[355626377,1741407041813,-500.0,8.219e-05,2]
[355626378,1741407041823,-654.8,8.219e-05,2]
[355626379,1741407041832,-500.0,8.219e-05,2]
[355626380,1741407041842,-500.0,8.219e-05,2]
[355626381,1741407041852,-500.0,8.219e-05,2]
[355626382,1741407041862,-500.0,8.219e-05,2]
[355626383,1741407041872,-500.0,8.219e-05,2]
[355626384,1741407041882,-2719.24,8.219e-05,2]
[355626385,1741407041892,-908.42,8.219e-05,2]
[355626386,1741407041901,-500.0,8.219e-05,2]
[355626387,1741407041911,-296.71797648,8.219e-05,2]
[355626388,1741407041923,-1360.89202352,8.219e-05,2]
[355626389,1741407041933,-500.0,8.219e-05,2]
[355626390,1741407041942,-500.0,8.219e-05,2]
[355626391,1741407041951,-1059.10254797,8.219e-05,2]
[355626395,1741407043173,-346.04745203,8.219e-05,2]
[355626396,1741407043182,-153.95254797,8.219e-05,2]
[355626397,1741407043235,-1007.46745203,8.219e-05,2]
[355626398,1741407043245,-1101.6,8.219e-05,2]
[355626399,1741407043254,-500.0,8.219e-05,2]
[355626400,1741407043263,-1053.24,8.219e-05,2]
[355626401,1741407043271,-1133.31,8.219e-05,2]
[355626402,1741407043281,-500.0,8.219e-05,2]
[355626403,1741407043290,-500.0,8.219e-05,2]
[355626404,1741407043299,-1758.9,8.219e-05,2]
[355626405,1741407043310,-2029.73,8.219e-05,2]
[355626406,1741407043320,-500.0,8.219e-05,2]
[355626407,1741407043329,-1712.57,8.219e-05,2]
[355626408,1741407043338,-1626.55,8.219e-05,2]
[355626409,1741407043347,-500.0,8.219e-05,2]
[355626410,1741407043355,-500.0,8.219e-05,2]
[355626411,1741407043365,-500.0,8.219e-05,2]
[355626412,1741407043374,-272.67834797,8.219e-05,2]
[355626413,1741407043403,-227.32165203,8.219e-05,2]
[355626414,1741407043412,-566.29842904,8.219e-05,2]
[355626420,1741407046248,-190.00157096,8.219e-05,2]
[355626421,1741407046258,-1145.54,8.219e-05,2]
[355626422,1741407046268,-957.17928904,8.219e-05,2]
[355626424,1741407046415,-520.45800274,8.219e-05,2]
[355626430,1741407131148,5272.55,8.025e-05,2]
[355626439,1741407306079,155.0,8.025e-05,3]
[355626444,1741407510146,687.172,8.055e-05,2]
[355626445,1741407610343,155.0,8.025e-05,3]
[355626451,1741407906010,155.0,8.025e-05,3]
[355626494,1741408207718,155.0,8.025e-05,3]
[355626504,1741408232410,-300.0,8.217e-05,2]
[355626505,1741408232419,-700.0,8.218e-05,2]
[355626506,1741408232464,-300.0,8.218e-05,2]
[355626507,1741408232473,-500.88350102,8.218e-05,2]
[355626508,1741408232483,-260.31255832,8.218e-05,2]
[355626509,1741408232492,-450.0,8.218e-05,2]
[355626510,1741408232501,-438.96895945,8.218e-05,2]
[355626511,1741408232511,-150.0,8.218e-05,2]
[355626512,1741408232520,-4536.50647399,8.218e-05,2]
[355626513,1741408232529,-409.99746274,8.219e-05,2]
[355626514,1741408232539,-167.9062632,8.219e-05,2]
[355626515,1741408232548,-411.81634417,8.219e-05,2]
[355626516,1741408232558,-500.0,8.219e-05,2]
[355626517,1741408232567,-267.3907574,8.219e-05,2]
[355626518,1741408232576,-215.24599459,8.219e-05,2]
[355626519,1741408232585,-380.16173313,8.219e-05,2]
[355626520,1741408232595,-513.63475041,8.219e-05,2]
[355626521,1741408232605,-511.18945145,8.219e-05,2]
[355626522,1741408232615,-165.322919,8.219e-05,2]
[355626523,1741408232624,-155.338397,8.219e-05,2]
[355626524,1741408232634,-278.629768,8.219e-05,2]
[355626525,1741408232644,-500.0,8.219e-05,2]
[355626526,1741408232654,-153.89696,8.219e-05,2]
[355626527,1741408232663,-159.501971,8.219e-05,2]
[355626528,1741408232672,-364.42177206,8.219e-05,2]
[355626529,1741408232685,-506.20929018,8.219e-05,2]
[355626530,1741408232694,-522.61064041,8.219e-05,2]
[355626531,1741408232703,-500.3426147,8.219e-05,2]
[355626532,1741408232712,-517.48341682,8.219e-05,2]
[355626533,1741408232724,-500.0,8.219e-05,2]
[355626534,1741408232733,-500.0,8.219e-05,2]
[355626535,1741408232743,-509.57703101,8.219e-05,2]
[355626536,1741408232754,-505.78646331,8.219e-05,2]
[355626537,1741408232765,-614.47951732,8.219e-05,2]
[355626538,1741408232774,-508.83694717,8.219e-05,2]
[355626539,1741408232784,-500.0,8.219e-05,2]
[355626540,1741408232794,-500.0,8.219e-05,2]
[355626541,1741408232804,-534.34745726,8.219e-05,2]
[355626542,1741408232813,-500.0,8.219e-05,2]
[355626543,1741408232823,-500.0,8.219e-05,2]
[355626544,1741408232832,-501.70530861,8.219e-05,2]
[355626545,1741408232842,-500.0,8.219e-05,2]
[355626546,1741408232852,-500.0,8.219e-05,2]
[355626547,1741408232864,-500.0,8.219e-05,2]
[355626548,1741408232876,-350.0,8.219e-05,2]
[355626549,1741408232887,-1085.98,8.219e-05,2]
[355626550,1741408232899,-500.0,8.219e-05,2]
[355626551,1741408232910,-500.0,8.219e-05,2]
[355626552,1741408232919,-787.48,8.219e-05,2]
[355626554,1741408232929,-500.0,8.219e-05,2]
[355626556,1741408232939,-500.0,8.219e-05,2]
[355626558,1741408232948,-500.0,8.219e-05,2]
[355626559,1741408232958,-500.0,8.219e-05,2]
[355626560,1741408232967,-500.0,8.219e-05,2]
[355626561,1741408232976,-500.0,8.219e-05,2]
[355626562,1741408232986,-500.0,8.219e-05,2]
[355626563,1741408232996,-500.0,8.219e-05,2]
[355626564,1741408233005,-500.0,8.219e-05,2]
[355626565,1741408233014,-1130.55,8.219e-05,2]
[355626566,1741408233024,-500.0,8.219e-05,2]
[355626567,1741408233034,-500.0,8.219e-05,2]
[355626568,1741408233044,-1562.4,8.219e-05,2]
[355626569,1741408233054,-1802.66,8.219e-05,2]
[355626570,1741408233064,-1102.09,8.219e-05,2]
[355626571,1741408233074,-879.07,8.219e-05,2]
[355626572,1741408233084,-500.0,8.219e-05,2]
[355626573,1741408233093,-500.0,8.219e-05,2]
[355626574,1741408233102,-500.0,8.219e-05,2]
[355626575,1741408233111,-500.0,8.219e-05,2]
[355626576,1741408233121,-500.0,8.219e-05,2]
[355626577,1741408233130,-1350.51,8.219e-05,2]
[355626578,1741408233140,-500.0,8.219e-05,2]
[355626579,1741408233150,-500.0,8.219e-05,2]
[355626580,1741408233160,-500.0,8.219e-05,2]
[355626581,1741408233170,-500.0,8.219e-05,2]
[355626582,1741408233179,-500.0,8.219e-05,2]
[355626583,1741408233189,-500.0,8.219e-05,2]
[355626584,1741408233199,-500.0,8.219e-05,2]
[355626585,1741408233208,-500.0,8.219e-05,2]
[355626586,1741408233218,-500.0,8.219e-05,2]
[355626587,1741408233227,-1005.49,8.219e-05,2]
[355626588,1741408233237,-500.0,8.219e-05,2]
[355626589,1741408233246,-500.0,8.219e-05,2]
[355626590,1741408233256,-500.0,8.219e-05,2]
[355626591,1741408233266,-500.0,8.219e-05,2]
[355626592,1741408233275,-500.0,8.219e-05,2]
[355626593,1741408233285,-500.0,8.219e-05,2]
[355626594,1741408233295,-1316.17,8.219e-05,2]
[355626595,1741408233305,-500.0,8.219e-05,2]
[355626596,1741408233315,-500.0,8.219e-05,2]
[355626597,1741408233325,-500.0,8.219e-05,2]
[355626598,1741408233335,-500.0,8.219e-05,2]
[355626599,1741408233345,-500.0,8.219e-05,2]
[355626600,1741408233355,-162.68012977,8.219e-05,2]
[355626601,1741408233364,-500.0,8.219e-05,2]
[355626602,1741408233373,-500.0,8.219e-05,2]
[355626603,1741408233382,-500.0,8.219e-05,2]
[355626604,1741408233391,-500.0,8.219e-05,2]
[355626605,1741408233401,-500.0,8.219e-05,2]
[355626606,1741408233410,-500.0,8.219e-05,2]
[355626607,1741408233419,-500.0,8.219e-05,2]
[355626608,1741408233429,-508.32580643,8.219e-05,2]
[355626609,1741408233439,-500.0,8.219e-05,2]
[355626610,1741408233449,-500.0,8.219e-05,2]
[355626611,1741408233459,-1455.01,8.219e-05,2]
[355626612,1741408233468,-1243.16,8.219e-05,2]
[355626613,1741408233478,-500.0,8.219e-05,2]
[355626614,1741408233487,-494.25913623,8.219e-05,2]
[355626615,1741408233497,-500.0,8.219e-05,2]
[355626616,1741408233507,-500.0,8.219e-05,2]
[355626617,1741408233516,-500.0,8.219e-05,2]
[355626618,1741408233526,-566.00407155,8.219e-05,2]
[355626619,1741408233536,-500.0,8.219e-05,2]
[355626620,1741408233546,-500.0,8.219e-05,2]
[355626621,1741408233556,-500.0,8.219e-05,2]
[355626622,1741408233566,-522.70185155,8.219e-05,2]
[355626623,1741408233576,-512.45710524,8.219e-05,2]
[355626624,1741408233586,-500.0,8.219e-05,2]
[355626625,1741408233595,-500.0,8.219e-05,2]
[355626626,1741408233605,-500.0,8.219e-05,2]
[355626627,1741408233614,-500.0,8.219e-05,2]
[355626628,1741408233624,-544.29862546,8.219e-05,2]
[355626629,1741408233633,-500.0,8.219e-05,2]
[355626630,1741408233643,-1069.92,8.219e-05,2]
[355626631,1741408233652,-1005.57,8.219e-05,2]
[355626632,1741408233663,-500.0,8.219e-05,2]
[355626633,1741408233672,-797.96,8.219e-05,2]
[355626634,1741408233688,-500.0,8.219e-05,2]
[355626635,1741408233698,-500.0,8.219e-05,2]
[355626636,1741408233708,-500.0,8.219e-05,2]
[355626637,1741408233717,-500.0,8.219e-05,2]
[355626638,1741408233727,-508.21,8.219e-05,2]
[355626639,1741408233736,-958.2,8.219e-05,2]
[355626640,1741408233746,-500.0,8.219e-05,2]
[355626641,1741408233756,-500.54431964,8.219e-05,2]
[355626642,1741408233765,-1835.17,8.219e-05,2]
[355626643,1741408233775,-981.51,8.219e-05,2]
[355626644,1741408233785,-522.57654645,8.219e-05,2]
[355626645,1741408233795,-628.49152513,8.219e-05,2]
[355626646,1741408233804,-500.0,8.219e-05,2]
[355626647,1741408233814,-971.34,8.219e-05,2]
[355626648,1741408233823,-1382.47,8.219e-05,2]
[355626649,1741408233833,-500.0,8.219e-05,2]
[355626650,1741408233842,-500.0,8.219e-05,2]
[355626651,1741408233852,-500.0,8.219e-05,2]
[355626652,1741408233861,-500.0,8.219e-05,2]
[355626653,1741408233871,-500.0,8.219e-05,2]
[355626654,1741408233880,-1638.45,8.219e-05,2]
[355626655,1741408233889,-500.0,8.219e-05,2]
[355626656,1741408233899,-1328.16,8.219e-05,2]
[355626657,1741408233908,-500.0,8.219e-05,2]
[355626658,1741408233918,-500.0,8.219e-05,2]
[355626659,1741408233927,-1441.18,8.219e-05,2]
[355626660,1741408233936,-500.0,8.219e-05,2]
[355626661,1741408233946,-514.97302114,8.219e-05,2]
[355626662,1741408233955,-352.72663886,8.219e-05,2]
[355626663,1741408233965,-500.0,8.219e-05,2]
[355626664,1741408233974,-500.0,8.219e-05,2]
[355626665,1741408233983,-946.54,8.219e-05,2]
[355626666,1741408233993,-862.53,8.219e-05,2]
[355626667,1741408234003,-500.0,8.219e-05,2]
[355626668,1741408234012,-500.0,8.219e-05,2]
[355626669,1741408234022,-500.0,8.219e-05,2]
[355626670,1741408234031,-500.0,8.219e-05,2]
[355626671,1741408234040,-500.0,8.219e-05,2]
[355626672,1741408234051,-655.99,8.219e-05,2]
[355626673,1741408234061,-852.07,8.219e-05,2]
[355626674,1741408234071,-500.0,8.219e-05,2]
[355626675,1741408234080,-500.0,8.219e-05,2]
[355626676,1741408234090,-562.81,8.219e-05,2]
[355626677,1741408234100,-568.89971609,8.219e-05,2]
[355626678,1741408234111,-571.95123299,8.219e-05,2]
[355626679,1741408234120,-500.0,8.219e-05,2]
[355626680,1741408234130,-500.0,8.219e-05,2]
[355626681,1741408234141,-918.15,8.219e-05,2]
[355626682,1741408234151,-506.20022537,8.219e-05,2]
[355626683,1741408234160,-500.0,8.219e-05,2]
[355626684,1741408234170,-500.0,8.219e-05,2]
[355626685,1741408234180,-500.0,8.219e-05,2]
[355626686,1741408234190,-713.78,8.219e-05,2]
[355626687,1741408234370,-829.81,8.219e-05,2]
[355626688,1741408234381,-382.1650449,8.219e-05,2]
[355626689,1741408234391,-500.0,8.219e-05,2]
[355626690,1741408234402,-500.0,8.219e-05,2]
[355626691,1741408234411,-500.0,8.219e-05,2]
[355626692,1741408234422,-500.0,8.219e-05,2]
[355626693,1741408234432,-500.0,8.219e-05,2]
[355626694,1741408234441,-500.0,8.219e-05,2]
[355626695,1741408234450,-1531.92,8.219e-05,2]
[355626696,1741408234460,-500.0,8.219e-05,2]
[355626697,1741408234469,-500.0,8.219e-05,2]
[355626698,1741408234478,-231.11152955,8.219e-05,2]
[355626699,1741408234488,-500.0,8.219e-05,2]
[355626700,1741408234498,-511.44690103,8.219e-05,2]
[355626701,1741408234507,-500.0,8.219e-05,2]
[355626702,1741408234516,-500.0,8.219e-05,2]
[355626703,1741408234525,-500.0,8.219e-05,2]
[355626704,1741408234534,-500.0,8.219e-05,2]
[355626705,1741408234544,-500.0,8.219e-05,2]
[355626706,1741408234554,-500.0,8.219e-05,2]
[355626707,1741408234564,-500.0,8.219e-05,2]
[355626708,1741408234574,-500.0,8.219e-05,2]
[355626709,1741408234584,-500.0,8.219e-05,2]
[355626710,1741408234593,-500.0,8.219e-05,2]
[355626711,1741408234603,-687.92,8.219e-05,2]
[355626712,1741408234613,-500.0,8.219e-05,2]
[355626713,1741408234623,-538.68789318,8.219e-05,2]
[355626714,1741408234633,-500.0,8.219e-05,2]
[355626715,1741408234642,-555.12204448,8.219e-05,2]
[355626716,1741408234652,-500.0,8.219e-05,2]
[355626717,1741408234662,-1321.11,8.219e-05,2]
[355626718,1741408234672,-500.0,8.219e-05,2]
[355626719,1741408234686,-500.0,8.219e-05,2]
[355626720,1741408234695,-500.0,8.219e-05,2]
[355626721,1741408234705,-500.0,8.219e-05,2]
[355626722,1741408234715,-500.0,8.219e-05,2]
[355626723,1741408234725,-230.02028602,8.219e-05,2]
[355626724,1741408234735,-500.0,8.219e-05,2]
[355626725,1741408234744,-1459.83,8.219e-05,2]
[355626726,1741408234754,-500.0,8.219e-05,2]
[355626727,1741408234765,-500.0,8.219e-05,2]
[355626728,1741408234775,-500.0,8.219e-05,2]
[355626729,1741408234786,-500.0,8.219e-05,2]
[355626730,1741408234796,-719.19,8.219e-05,2]
[355626731,1741408234806,-500.0,8.219e-05,2]
[355626732,1741408234815,-495.98524427,8.219e-05,2]
[355626733,1741408234825,-500.0,8.219e-05,2]
[355626734,1741408234835,-500.0,8.219e-05,2]
[355626735,1741408234844,-500.0,8.219e-05,2]
[355626736,1741408234854,-1894.92,8.219e-05,2]
[355626737,1741408234864,-500.0,8.219e-05,2]
[355626738,1741408234874,-804.94,8.219e-05,2]
[355626739,1741408234884,-500.0,8.219e-05,2]
[355626740,1741408234893,-500.0,8.219e-05,2]
[355626741,1741408234903,-500.0,8.219e-05,2]
[355626742,1741408234912,-967.6,8.219e-05,2]
[355626743,1741408234921,-1233.97,8.219e-05,2]
[355626744,1741408234931,-500.0,8.219e-05,2]
[355626745,1741408234940,-500.0,8.219e-05,2]
[355626746,1741408234949,-500.0,8.219e-05,2]
[355626747,1741408234959,-500.0,8.219e-05,2]